[Event "Gibraltar Challengers A 2019"]
[Site "Caleta"]
[Date "2019.01.22"]
[Round "2"]
[White "Hng, Mei-Xian Eunice"]
[Black "Kukic, Boris"]
[Result "0-1"]
[ECO "C93"]
[WhiteElo "1718"]
[BlackElo "2035"]
[Annotator "NA"]
[PlyCount "166"]
[EventDate "2019.01.18"]
[EventType "swiss"]
[EventCountry "GGB"]
[SourceTitle "playchess.com"]
[Source "ChessBase"]
[SourceQuality "1"]
[TimeControl "6600+10"]

1. e4 {[%emt 0:00:00]} e5 {[%emt 0:02:21]} 2. Nf3 {[%emt 0:00:04]} Nc6 {[%emt 0:00:27]} 3. Bb5 {[%emt 0:00:06]} a6 {[%emt 0:00:14]} 4. Ba4 {[%emt 0:00:04]} Nf6 {[%emt 0:00:28]} 5. O-O {[%emt 0:00:17]} b5 {[%emt 0:00:56]} 6. Bb3 {[%emt 0:00:05]} h6 {[%emt 0:00:45]} 7. h3 {[%emt 0:01:44]} d6 {[%emt 0:01:36]} 8. c3 {[%emt 0:01:47]} Be7 {[%emt 0:00:18]} 9. Re1 {[%emt 0:01:22]} O-O {[%emt 0:00:11]} 10. d3 {[%emt 0:00:31]} Na5 {[%emt 0:02:19]} 11. Bc2 {[%emt 0:00:26]} Nh7 {[%emt 0:01:06]} 12. Nbd2 {[%emt 0:08:28]} c5 {[%emt 0:00:25]} 13. Nf1 {[%emt 0:01:30]} Nc6 {[%emt 0:00:27]} 14. Ng3 {[%emt 0:07:43]} Bf6 {[%emt 0:00:40]} 15. Nh2 {[%emt 0:03:13]} Bg5 {[%emt 0:01:08]} 16. Ng4 {[%emt 0:04:20]} Bxc1 {[%emt 0:01:46]} 17. Rxc1 {[%emt 0:00:57]} Qg5 {[%emt 0:03:52]} 18. Nf5 {[%emt 0:12:31]} Bxf5 {[%emt 0:02:13]} 19. exf5 {[%emt 0:00:10]} Rfe8 {[%emt 0:03:54]} 20. Qf3 {[%emt 0:07:29]} Rac8 {[%emt 0:02:52]} 21. Bb3 {[%emt 0:08:10]} Ne7 {[%emt 0:01:00]} 22. Ne3 {[%emt 0:01:08]} Nf6 {[%emt 0:01:14]} 23. g3 {[%emt 0:09:55]} h5 {[%emt 0:06:57]} 24. h4 {[%emt 0:04:25]} Qh6 {[%emt 0:00:16]} 25. Rcd1 {[%emt 0:04:51]} Rc7 {[%emt 0:01:42]} 26. Kh2 {[%emt 0:02:08]} Rd8 {[%emt 0:00:18]} 27. Kh3 {[%emt 0:05:47]} d5 {[%emt 0:00:32]} 28. Rg1 {[%emt 0:01:42]} d4 {[%emt 0:02:54]} 29. g4 {[%emt 0:02:41]} Nxg4 {[%emt 0:02:03]} 30. Nxg4 {[%emt 0:00:12]} hxg4+ {[%emt 0:00:11]} 31. Rxg4 {[%emt 0:00:15]} Qf6 {[%emt 0:01:55]} 32. Rg5 {[%emt 0:00:58]} Kf8 {[%emt 0:01:33]} 33. Qh5 {[%emt 0:04:16]} g6 {[%emt 0:04:06]} 34. Qh6+ {[%emt 0:04:01]} Qg7 {[%emt 0:02:59]} 35. Qxg7+ {[%emt 0:00:43]} Kxg7 {[%emt 0:00:10]} 36. fxg6 {[%emt 0:00:31]} Nxg6 {[%emt 0:00:53]} 37. Kg4 {[%emt 0:03:25]} f6 {[%emt 0:00:56]} 38. Rf5 {[%emt 0:00:11]} Ne7 {[%emt 0:02:05]} 39. Rf3 {[%emt 0:01:17]} c4 {[%emt 0:00:28]} 40. dxc4 {[%emt 0:00:26]} bxc4 {[%emt 0:00:20]} 41. Ba4 {[%emt 0:00:31]} Rc5 {[%emt 0:02:39]} 42. Rg3 {[%emt 0:01:05]} Ra5 {[%emt 0:00:29]} 43. b3 {[%emt 0:00:41]} Kh6 {[%emt 0:01:42]} 44. Kh3 {[%emt 0:01:34]} Ng6 {[%emt 0:00:36]} 45. cxd4 {[%emt 0:00:58]} Rxd4 {[%emt 0:00:21]} 46. Rxd4 {[%emt 0:00:37]} exd4 {[%emt 0:00:05]} 47. Rg4 {[%emt 0:00:12]} Ne5 {[%emt 0:04:17]} 48. Rxd4 {[%emt 0:00:18]} c3 {[%emt 0:00:11]} 49. Rd1 {[%emt 0:00:38]} Rc5 {[%emt 0:00:18]} 50. Rc1 {[%emt 0:00:26]} Nd3 {[%emt 0:00:52]} 51. b4 {[%emt 0:00:34]} Nxb4 {[%emt 0:01:05]} 52. Bb3 {[%emt 0:00:11]} a5 {[%emt 0:00:21]} 53. Kg3 {[%emt 0:00:47]} Kg7 {[%emt 0:00:33]} 54. Kf3 {[%emt 0:00:15]} Nd3 {[%emt 0:00:12]} 55. Rg1+ {[%emt 0:00:13]} Kh6 {[%emt 0:00:09]} 56. Ke2 {[%emt 0:00:15]} c2 {[%emt 0:01:09]} 57. Bxc2 {[%emt 0:00:09]} Rxc2+ {[%emt 0:00:06]} 58. Kxd3 {[%emt 0:00:04]} Rxa2 {[%emt 0:00:08]} 59. Ke3 {[%emt 0:00:12]} Kh5 {[%emt 0:00:15]} 60. Rh1 {[%emt 0:00:20]} a4 {[%emt 0:00:06]} 61. Rb1 {[%emt 0:00:07]} Kxh4 {[%emt 0:00:09]} 62. Rb6 {[%emt 0:00:04]} Kg5 {[%emt 0:00:14]} 63. Ra6 {[%emt 0:00:06]} Ra3+ {[%emt 0:00:21]} 64. Ke4 {[%emt 0:00:15]} f5+ {[%emt 0:00:10]} 65. Kd4 {[%emt 0:00:08]} Kf4 {[%emt 0:00:23]} 66. Rh6 {[%emt 0:00:18]} Ra2 {[%emt 0:00:22]} 67. Rh4+ {[%emt 0:00:10]} Kg5 {[%emt 0:00:24]} 68. Rh2 {[%emt 0:00:02]} Ra3 {[%emt 0:00:38]} 69. Kc4 {[%emt 0:00:11]} Ra1 {[%emt 0:00:27]} 70. Kb4 {[%emt 0:00:14]} Kf4 {[%emt 0:00:11]} 71. Kc3 {[%emt 0:00:11]} Kf3 {[%emt 0:00:06]} 72. Kb4 {[%emt 0:00:04]} Rf1 {[%emt 0:00:20]} 73. Kxa4 {[%emt 0:00:12]} Rxf2 {[%emt 0:00:06]} 74. Rh8 {[%emt 0:00:06]} Rb2 {[%emt 0:00:36]} 75. Ka3 {[%emt 0:00:14]} Rb7 {[%emt 0:00:08]} 76. Rf8 {[%emt 0:00:04]} f4 {[%emt 0:00:07]} 77. Ka2 {[%emt 0:00:09]} Kg3 {[%emt 0:00:10]} 78. Rg8+ {[%emt 0:00:07]} Kf2 {[%emt 0:00:08]} 79. Rf8 {[%emt 0:00:03]} f3 {[%emt 0:00:06]} 80. Ka3 {[%emt 0:00:07]} Kg2 {[%emt 0:00:07]} 81. Rg8+ {[%emt 0:00:03]} Kf1 {[%emt 0:00:08]} 82. Rf8 {[%emt 0:00:13]} f2 {[%emt 0:00:06]} 83. Ka2 {[%emt 0:00:08]} Rg7 {[%emt 0:00:05]} 0-1

[Event "Gibraltar Challengers A 2019"]
[Site "Caleta"]
[Date "2019.01.23"]
[Round "3"]
[White "Castrillon Gomez, Melissa"]
[Black "Alarcon Olmos, Daniel"]
[Result "1-0"]
[ECO "B28"]
[WhiteElo "2244"]
[BlackElo "2124"]
[Annotator "NA"]
[PlyCount "99"]
[EventDate "2019.01.18"]
[EventType "swiss"]
[EventCountry "GGB"]
[SourceTitle "playchess.com"]
[Source "ChessBase"]
[SourceQuality "1"]
[TimeControl "6600+10"]

1. e4 {[%emt 0:00:04]} c5 {[%emt 0:00:00]} 2. Nf3 {[%emt 0:00:06]} a6 {[%emt 0:00:00]} 3. c3 {[%emt 0:00:12]} g6 {[%emt 0:00:33]} 4. d4 {[%emt 0:00:16]} cxd4 {[%emt 0:03:18] B28: Sicilian: 2 Nf3 a6 (O'Kelly Variation)} 5. cxd4 {[%emt 0:00:16]} Nf6 {[%emt 0:09:20]} 6. e5 {[%emt 0:04:36]} Ne4 $146 {[%emt 0:09:13]} ({Predecessor:} 6... Nd5 7. Bc4 Nb6 8. Bb3 d5 9. h3 Bg7 10. Nc3 O-O 11. O-O Nc6 12. Re1 {1-0 (37) Kulaots,K (2573)-Vorobjov,P (2215) Viljandi 2017}) 7. Bd3 {[%emt 0:05:58]} Qa5+ {[%emt 0:08:42]} 8. Nbd2 {[%emt 0:04:24]} d5 {[%emt 0:01:38]} 9. O-O {[%emt 0:17:33]} Nxd2 $1 {[%emt 0:03:35]} 10. Nxd2 {[%emt 0:01:16]} Nc6 {[%emt 0:02:41]} 11. Nb3 {[%emt 0:00:28]} Qb6 {[%emt 0:00:52]} 12. Be3 {[%emt 0:01:19]} Bg7 {[%emt 0:28:00]} 13. Qd2 {[%emt 0:02:42]} O-O {[%emt 0:03:17]} 14. Nc5 {[%emt 0:07:46]} Qb4 {[%emt 0:00:35]} 15. Qc1 {[%emt 0:04:51]} f6 {[%emt 0:07:35]} 16. f4 {[%emt 0:08:24]} fxe5 {[%emt 0:03:21]} 17. dxe5 {[%emt 0:01:12]} Kh8 {[%emt 0:05:12]} 18. Nxa6 {[%emt 0:07:26]} Qa5 {[%emt 0:06:34]} 19. Nc5 {[%emt 0:03:25]} Nb4 {[%emt 0:01:16]} (19... g5) 20. Bb1 {[%emt 0:02:08]} Qb5 {[%emt 0:03:53]} 21. a4 {[%emt 0:08:41]} Qe2 {[%emt 0:02:02]} 22. Qd2 {[%emt 0:00:49]} Qxd2 {[%emt 0:02:14]} 23. Bxd2 {[%emt 0:00:01]} Nc6 {[%emt 0:00:02]} 24. Bd3 {[%emt 0:02:42]} g5 {[%emt 0:01:23]} 25. fxg5 {[%emt 0:06:54]} Rxf1+ {[%emt 0:01:53]} 26. Rxf1 {[%emt 0:02:15]} Nxe5 {[%emt 0:01:09]} 27. Bc3 {[%emt 0:07:03]} ({Better is} 27. Bb5 $14) 27... d4 {[%emt 0:00:10]} 28. Bb4 {[%emt 0:00:21]} b6 {[%emt 0:00:10]} 29. Be4 $17 {[%emt 0:00:28]} bxc5 {[%emt 0:01:24]} 30. Bxa8 {[%emt 0:00:01]} cxb4 {[%emt 0:00:01]} 31. Rc1 {[%emt 0:04:32]} Ba6 {[%emt 0:01:14]} 32. Bc6 {[%emt 0:01:22]} Nd3 {[%emt 0:01:47]} 33. Rc2 {[%emt 0:00:19]} e5 {[%emt 0:00:17]} 34. Bb5 {[%emt 0:00:29]} b3 {[%emt 0:01:13]} 35. Rc7 {[%emt 0:00:50]} Bxb5 {[%emt 0:01:01]} 36. axb5 {[%emt 0:00:21]} Bf8 {[%emt 0:00:04]} 37. b6 {[%emt 0:00:53]} Nc5 {[%emt 0:00:17]} 38. b7 {[%emt 0:00:11]} Nxb7 {[%emt 0:00:04]} 39. Rxb7 {[%emt 0:00:01]} e4 {[%emt 0:00:08]} 40. Rxb3 {[%emt 0:00:27]} d3 {[%emt 0:00:01]} 41. Rb8 {[%emt 0:01:57]} Kg7 {[%emt 0:00:04]} 42. Rxf8 {[%emt 0:00:01]} Kxf8 {[%emt 0:00:36]} 43. Kf2 Ke7 {[%emt 0:00:02]} 44. Ke3 {[%emt 0:00:07]} Kd6 {[%emt 0:00:00]} 45. h4 {[%emt 0:00:05]} Ke5 {[%emt 0:00:13]} 46. g4 {[%emt 0:00:16]} Kd5 {[%emt 0:00:02]} 47. h5 {[%emt 0:00:07]} Kc4 {[%emt 0:00:35]} 48. g6 {[%emt 0:00:04]} Kb3 {[%emt 0:00:07]} 49. gxh7 {[%emt 0:00:11]} Kc2 {[%emt 0:00:00]} 50. h8=Q {[%emt 0:00:11]} 1-0

[Event "Gibraltar Challengers A 2019"]
[Site "Caleta"]
[Date "2019.01.23"]
[Round "3"]
[White "Meszaros, Andras"]
[Black "Lim, Zhuo Ren"]
[Result "0-1"]
[ECO "E54"]
[WhiteElo "2226"]
[BlackElo "2178"]
[Annotator "NA"]
[PlyCount "166"]
[EventDate "2019.01.18"]
[EventType "swiss"]
[EventCountry "GGB"]
[SourceTitle "playchess.com"]
[Source "ChessBase"]
[SourceQuality "1"]
[TimeControl "6600+10"]

1. d4 {[%emt 0:00:00]} Nf6 {[%emt 0:00:40]} 2. c4 {[%emt 0:00:16]} e6 {[%emt 0:00:16]} 3. Nf3 {[%emt 0:00:12]} c5 {[%emt 0:00:41]} 4. e3 {[%emt 0:00:38]} cxd4 {[%emt 0:00:41]} 5. exd4 {[%emt 0:00:05]} d5 {[%emt 0:00:19]} 6. Nc3 {[%emt 0:00:10]} Bb4 {[%emt 0:01:02]} 7. Bd3 {[%emt 0:00:10]} dxc4 {[%emt 0:00:19]} 8. Bxc4 {[%emt 0:00:06]} O-O {[%emt 0:00:23]} 9. O-O {[%emt 0:00:11]} b6 {[%emt 0:00:22]} 10. Bg5 {[%emt 0:00:26]} Bb7 {[%emt 0:00:19]} 11. a3 {[%emt 0:06:10]} Bxc3 {[%emt 0:01:42]} 12. bxc3 {[%emt 0:00:05]} Nbd7 {[%emt 0:00:12] E54: Nimzo-Indian: Rubinstein: Main Line: 7...dxc4 8 Bxc4} 13. Bd3 {[%emt 0:01:10] LiveBook: 5 Games} Qc7 {[%emt 0:03:31]} 14. c4 {[%emt 0:02:27]} Ng4 {[%emt 0:10:44]} 15. d5 {[%emt 0:12:08]} exd5 {[%emt 0:08:58]} 16. cxd5 {[%emt 0:00:50]} Qd6 {[%emt 0:00:45]} 17. Qa4 {[%emt 0:18:25] [#]} Ngf6 $146 {[%emt 0:05:26]} ({Predecessor:} 17... Nge5 18. Nxe5 Nxe5 19. Rad1 Nxd3 20. Rxd3 {½-½ (40) Guliev,S (2484)-Lutz,C (2609) Kusadasi 2006}) 18. Rad1 {[%emt 0:03:18]} Nc5 {[%emt 0:20:07]} 19. Qd4 {[%emt 0:00:54]} Nxd3 {[%emt 0:00:52]} 20. Bxf6 {[%emt 0:02:09]} Qxf6 {[%emt 0:00:08]} 21. Qxd3 {[%emt 0:00:07]} Rad8 {[%emt 0:03:03]} 22. Qb5 {[%emt 0:04:37]} Qf5 {[%emt 0:02:23]} 23. Qa4 {[%emt 0:04:05]} Rxd5 {[%emt 0:02:51]} 24. Rxd5 {[%emt 0:03:56]} Bxd5 {[%emt 0:00:30]} 25. Qxa7 {[%emt 0:01:13]} Bxf3 {[%emt 0:03:48]} 26. gxf3 {[%emt 0:00:05]} Qxf3 {[%emt 0:00:36]} 27. Qxb6 {[%emt 0:03:14]} Qxa3 {[%emt 0:00:15]} 28. Rd1 {[%emt 0:00:17]} h6 {[%emt 0:02:02]} 29. Qd6 {[%emt 0:01:12]} Qf3 {[%emt 0:01:00]} 30. Rd3 {[%emt 0:00:14]} Qf5 {[%emt 0:00:31]} 31. Rb3 {[%emt 0:02:33]} Qc8 {[%emt 0:02:15]} 32. Rg3 {[%emt 0:01:35]} Kh8 {[%emt 0:01:58]} 33. Qd4 {[%emt 0:00:29]} Qc1+ {[%emt 0:00:56]} 34. Kg2 {[%emt 0:00:09]} Qc6+ {[%emt 0:00:04]} 35. Kg1 {[%emt 0:01:26]} Rg8 {[%emt 0:01:00]} 36. Rc3 {[%emt 0:00:46]} Qe6 {[%emt 0:00:52]} 37. Re3 {[%emt 0:00:14]} Qf5 {[%emt 0:00:21]} 38. Rg3 {[%emt 0:00:13]} Qb1+ {[%emt 0:01:55]} 39. Kg2 {[%emt 0:00:05]} Qb7+ {[%emt 0:00:03]} 40. Kg1 {[%emt 0:00:09]} Kh7 {[%emt 0:00:16]} 41. Qc3 {[%emt 0:04:58]} g6 {[%emt 0:03:03]} 42. Qb3 {[%emt 0:00:12]} Qe7 {[%emt 0:01:40]} 43. Re3 {[%emt 0:00:26]} Qg5+ {[%emt 0:00:05]} 44. Rg3 {[%emt 0:00:14]} Qc1+ {[%emt 0:00:02]} 45. Kg2 {[%emt 0:00:08]} Qc6+ {[%emt 0:00:08]} 46. Kg1 {[%emt 0:00:21]} Rf8 {[%emt 0:00:15]} 47. Rc3 {[%emt 0:00:12]} Qd7 {[%emt 0:00:38]} 48. Rf3 {[%emt 0:00:31]} Kg8 {[%emt 0:00:46]} 49. Rd3 {[%emt 0:00:17]} Qe7 {[%emt 0:00:12]} 50. Re3 {[%emt 0:00:31]} Qg5+ {[%emt 0:00:19]} 51. Rg3 {[%emt 0:00:06]} Qc1+ {[%emt 0:00:03]} 52. Kg2 {[%emt 0:00:06]} Qc6+ {[%emt 0:00:03]} 53. Qf3 {[%emt 0:00:05]} Qc4 {[%emt 0:01:12]} 54. Rg4 {[%emt 0:01:47]} Qc5 {[%emt 0:00:58]} 55. Qe3 {[%emt 0:04:55]} Qxe3 {[%emt 0:00:28]} 56. fxe3 {[%emt 0:00:05]} Re8 {[%emt 0:00:15]} 57. Kf3 {[%emt 0:00:11]} Kg7 {[%emt 0:00:09]} 58. Ra4 {[%emt 0:00:10]} Kf6 {[%emt 0:00:20]} 59. Rf4+ {[%emt 0:00:12]} Kg7 {[%emt 0:00:05]} 60. Ra4 {[%emt 0:00:05]} Re5 {[%emt 0:00:12]} 61. Ra6 {[%emt 0:01:19]} Rh5 {[%emt 0:00:54]} 62. Kg3 {[%emt 0:00:15]} Rf5 {[%emt 0:00:04]} 63. Rb6 {[%emt 0:00:18]} Ra5 {[%emt 0:00:13]} 64. Rc6 {[%emt 0:00:13]} Ra4 {[%emt 0:00:15]} 65. Rb6 {[%emt 0:01:04]} g5 {[%emt 0:00:11]} 66. Rc6 {[%emt 0:00:31]} f6 {[%emt 0:00:08]} 67. Rb6 {[%emt 0:00:19]} Kg6 {[%emt 0:00:04]} 68. Rb5 {[%emt 0:01:01]} h5 {[%emt 0:00:21]} 69. Rb2 {[%emt 0:01:26]} h4+ {[%emt 0:00:23]} 70. Kg2 {[%emt 0:00:22]} g4 {[%emt 0:00:38]} 71. Kf2 {[%emt 0:00:35]} Kf5 {[%emt 0:00:17]} 72. Rc2 {[%emt 0:00:59]} Kg5 {[%emt 0:00:33]} 73. Rb2 {[%emt 0:01:37]} f5 {[%emt 0:00:17]} 74. Rc2 {[%emt 0:00:46]} Rb4 {[%emt 0:00:06]} 75. Ra2 {[%emt 0:00:07]} Rc4 {[%emt 0:00:04]} 76. Rb2 {[%emt 0:00:05]} Ra4 {[%emt 0:00:04]} 77. Rc2 {[%emt 0:00:05]} h3 {[%emt 0:00:06]} 78. Ke2 {[%emt 0:08:00]} Ra1 {[%emt 0:00:19]} 79. Kd3 {[%emt 0:02:34]} Rd1+ {[%emt 0:00:07]} 80. Kc4 {[%emt 0:00:13]} Rg1 {[%emt 0:00:05]} 81. Kd4 {[%emt 0:00:36]} Rg2 $19 {[%emt 0:00:35]} 82. Rc8 {[%emt 0:00:29]} Rxh2 {[%emt 0:00:19]} 83. e4 {[%emt 0:01:23]} fxe4 {[%emt 0:00:21]} 0-1

[Event "Gibraltar Challengers A 2019"]
[Site "Caleta"]
[Date "2019.01.23"]
[Round "3"]
[White "Abdulraheem Abdulrahman Akint"]
[Black "Vinal Gutierrez, Pedro"]
[Result "1-0"]
[ECO "A13"]
[WhiteElo "2224"]
[BlackElo "1997"]
[Annotator "NA"]
[PlyCount "47"]
[EventDate "2019.01.18"]
[EventType "swiss"]
[EventCountry "GGB"]
[SourceTitle "playchess.com"]
[Source "ChessBase"]
[SourceQuality "1"]
[TimeControl "6600+10"]

{[%evp 11,47,-58,32767,32767,-73,32767,-49,-91,-75,-137,-131,-172,-184,-181,-129,-139,43,54,24,32767,32767,32767,32767,32767,32767,32767,133,149,352,382,366,422,32767,484,673,32767,32767,943]} 1. Nf3 {[%emt 0:00:03]} d5 {[%emt 0:00:00]} 2. c4 {[%emt 0:00:09]} e6 {[%emt 0:00:00]} 3. g3 {[%emt 0:00:13]} dxc4 {[%emt 0:00:06]} 4. Bg2 {[%emt 0:00:27]} a6 {[%emt 0:00:18] A13: English Opening: 1...e6} 5. a4 {[%emt 0:03:05]} (5. O-O Nc6 6. Na3 Bxa3 7. bxa3 e5 8. Rb1 Nge7 9. Qc2 Bf5 10. e4 Bg4 11. Rxb7 Bxf3 12. Bxf3 {0-1 (41) Aronian,L (2785)-Grandelius,N (2643) Doha 2016}) 5... Nc6 {[%emt 0:02:33]} 6. Na3 {[%emt 0:04:21] LiveBook: 9 Games} Bxa3 {[%emt 0:01:41]} 7. bxa3 {[%emt 0:02:33]} e5 {[%emt 0:01:02]} 8. O-O $146 {[%emt 0:03:47]} ({Predecessor:} 8. Qc2 Be6 9. Qb2 f6 10. Qxb7 Na5 11. Qe4 Ne7 12. Bb2 {0-1 (37) Polzin,R (2505)-Mikhalevski,A (2441) Pardubice 2007}) 8... Be6 {[%emt 0:01:20]} 9. Bb2 {[%emt 0:03:06]} f6 {[%emt 0:00:31]} 10. Nh4 {[%emt 0:04:19]} Nge7 {[%emt 0:04:50]} 11. f4 {[%emt 0:01:18]} exf4 {[%emt 0:00:53]} 12. Rxf4 {[%emt 0:04:46]} O-O {[%emt 0:01:05]} 13. Qc2 {[%emt 0:06:20]} Na5 $2 {[%emt 0:04:05]} (13... Qd6 $17 14. Raf1 Rad8) 14. Be4 {[%emt 0:02:50]} h6 $1 {[%emt 0:01:42]} 15. Raf1 {[%emt 0:05:20]} Bh3 {[%emt 0:16:10]} 16. Bh7+ {[%emt 0:03:57]} Kh8 {[%emt 0:00:32]} 17. R1f3 {[%emt 0:13:29]} Qd6 {[%emt 0:03:29]} 18. Re4 {[%emt 0:06:27]} Nac6 {[%emt 0:03:57] [#]} 19. g4 $1 {[%emt 0:02:10]} ({Worse is} 19. Rxc4 Rad8 $15) 19... c3 $2 {[%emt 0:03:14]} (19... Rad8 {keeps fighting.}) 20. Bxc3 {[%emt 0:01:39]} Bxg4 {[%emt 0:23:03]} 21. Rxg4 {[%emt 0:00:22]} Qc5+ {[%emt 0:00:16]} 22. d4 {[%emt 0:03:28]} Qh5 {[%emt 0:02:30]} 23. Rfg3 {[%emt 0:01:33]} g5 {[%emt 0:02:34]} 24. Ng6+ $18 {[%emt 0:02:44]} 1-0

[Event "Gibraltar Challengers A 2019"]
[Site "Caleta"]
[Date "2019.01.23"]
[Round "3"]
[White "Janse, Jan Jaap"]
[Black "Tworzydlo, Piotr"]
[Result "0-1"]
[ECO "A49"]
[WhiteElo "2222"]
[BlackElo "2165"]
[Annotator "NA"]
[PlyCount "116"]
[EventDate "2019.01.18"]
[EventType "swiss"]
[EventCountry "GGB"]
[SourceTitle "playchess.com"]
[Source "ChessBase"]
[SourceQuality "1"]
[TimeControl "6600+10"]

1. d4 {[%emt 0:00:00]} g6 {[%emt 0:00:07]} 2. Nf3 {[%emt 0:00:13]} Nf6 {[%emt 0:00:53]} 3. g3 {[%emt 0:00:16]} Bg7 {[%emt 0:00:07]} 4. Bg2 {[%emt 0:00:05]} O-O {[%emt 0:00:42]} 5. O-O {[%emt 0:00:08]} d6 {[%emt 0:02:54]} 6. b3 {[%emt 0:03:55]} a5 {[%emt 0:10:12]} 7. c4 {[%emt 0:04:59] A49: 1 d4 Nf6 2 Nf3 g6 3 g3: Anti-King's Indian systems} (7. Bb2 a4 8. c4 c6 9. e3 Bg4 10. h3 Bxf3 11. Bxf3 Nbd7 12. Nc3 a3 13. Bc1 e5 14. dxe5 Nxe5 15. Bg2 {1-0 (42) Giri,A (2782)-Aronian,L (2767) chess.com INT 2018}) 7... c5 {[%emt 0:11:04]} 8. Bb2 {[%emt 0:02:33]} cxd4 {[%emt 0:00:10]} 9. Nxd4 {[%emt 0:01:38]} Na6 {[%emt 0:07:57]} 10. Nc3 {[%emt 0:05:29]} Nc5 {[%emt 0:00:45]} 11. Qc2 {[%emt 0:03:02]} Bd7 {[%emt 0:01:21]} 12. Rfd1 $146 {[%emt 0:05:10]} ({Predecessor:} 12. a3 Qc8 13. Nd5 Nxd5 14. cxd5 {½-½ (31) Oyeneyin,T (2105)-Boyo,P Lagos 2014}) 12... Qc8 {[%emt 0:03:17]} 13. Rac1 {[%emt 0:07:14]} Bh3 {[%emt 0:10:04]} 14. Bh1 {[%emt 0:06:56]} h5 {[%emt 0:00:20]} 15. Nd5 {[%emt 0:04:56]} Nxd5 {[%emt 0:02:07]} 16. Bxd5 {[%emt 0:02:21]} Kh8 {[%emt 0:14:58]} 17. Qd2 {[%emt 0:07:31]} Kh7 {[%emt 0:07:01]} 18. Nf3 {[%emt 0:05:03]} Bxb2 {[%emt 0:03:04]} 19. Ng5+ {[%emt 0:01:23]} Kg8 {[%emt 0:00:09]} 20. Qxb2 {[%emt 0:00:10]} Bd7 {[%emt 0:04:19]} 21. Qc2 {[%emt 0:08:29]} Bf5 {[%emt 0:10:36]} 22. Qc3 {[%emt 0:02:03]} Ra7 {[%emt 0:02:43]} 23. Rd4 {[%emt 0:02:58]} b6 {[%emt 0:03:31]} 24. Rf4 {[%emt 0:03:31]} e5 {[%emt 0:01:38]} 25. Rf3 {[%emt 0:01:18]} Kg7 {[%emt 0:02:03]} 26. Re3 {[%emt 0:05:45]} f6 {[%emt 0:00:57]} 27. Nf3 {[%emt 0:01:57]} Be6 {[%emt 0:02:58]} 28. Rd1 {[%emt 0:00:43]} Bxd5 {[%emt 0:01:07]} 29. Rxd5 {[%emt 0:00:20]} Rd7 {[%emt 0:01:08]} 30. Nh4 {[%emt 0:01:22]} Qe8 {[%emt 0:00:57]} 31. f4 {[%emt 0:01:16]} Qf7 {[%emt 0:00:38]} 32. f5 {[%emt 0:01:31]} g5 {[%emt 0:00:29]} 33. Ng6 {[%emt 0:00:24]} Rc8 {[%emt 0:00:55]} 34. Qd2 {[%emt 0:01:20]} Nb7 {[%emt 0:01:05] [#]} 35. Rb5 $11 {[%emt 0:04:32]} (35. Rexe5 $1 $18 {[%mdl 512]} Rcd8 (35... dxe5 36. Rxd7) 36. Re3) 35... d5 {[%emt 0:00:50]} 36. Rxd5 {[%emt 0:02:22]} Rxd5 {[%emt 0:00:03]} 37. cxd5 {[%emt 0:05:36]} Nd6 {[%emt 0:00:02]} 38. Rf3 {[%emt 0:00:32]} Rc5 {[%emt 0:00:19]} 39. Nxe5 {[%emt 0:01:43]} fxe5 {[%emt 0:01:14]} 40. Qxg5+ {[%emt 0:00:04]} Kh7 {[%emt 0:00:02]} 41. g4 {[%emt 0:00:46]} hxg4 {[%emt 0:00:26]} 42. Qh4+ {[%emt 0:00:45]} Kg8 {[%emt 0:00:28]} 43. Qd8+ {[%emt 0:01:37]} Ne8 {[%emt 0:00:50]} 44. Rg3 {[%emt 0:00:14]} Rxd5 {[%emt 0:00:04]} 45. Rxg4+ {[%emt 0:00:04]} Kf8 {[%emt 0:00:01]} 46. Qxb6 {[%emt 0:00:45]} Qxf5 {[%emt 0:00:07]} 47. Qh6+ {[%emt 0:00:54]} Kf7 {[%emt 0:00:01]} 48. Qg5 {[%emt 0:01:22]} Rd1+ {[%emt 0:00:08]} 49. Kg2 {[%emt 0:00:01]} Qf1+ {[%emt 0:00:16]} 50. Kg3 {[%emt 0:00:01]} Nf6 {[%emt 0:00:23]} 51. Qg6+ {[%emt 0:00:23]} Ke6 {[%emt 0:00:01]} 52. Rg5 {[%emt 0:00:08]} Qf4+ {[%emt 0:00:08]} 53. Kg2 {[%emt 0:00:08]} Rf1 {[%emt 0:00:32]} 54. Rg3 {[%emt 0:00:20]} Rf2+ {[%emt 0:00:07]} 55. Kh3 {[%emt 0:00:01]} Rxe2 {[%emt 0:00:09]} 56. a4 {[%emt 0:00:48]} Qf1+ {[%emt 0:00:01]} 57. Kh4 {[%emt 0:00:03]} Re4+ {[%emt 0:00:02]} 58. Kg5 {[%emt 0:00:08]} Qc1+ {[%emt 0:00:09]} 0-1

[Event "Gibraltar Challengers A 2019"]
[Site "Caleta"]
[Date "2019.01.23"]
[Round "3"]
[White "Maisuradze, Nino"]
[Black "Jordan Martinez, Miguel"]
[Result "1-0"]
[ECO "A41"]
[WhiteElo "2215"]
[BlackElo "2142"]
[Annotator "NA"]
[PlyCount "79"]
[EventDate "2019.01.18"]
[EventType "swiss"]
[EventCountry "GGB"]
[SourceTitle "playchess.com"]
[Source "ChessBase"]
[SourceQuality "1"]
[TimeControl "6600+10"]

1. d4 {[%emt 0:00:00]} d6 {[%emt 0:00:00]} 2. Nf3 {[%emt 0:00:38]} Bg4 {[%emt 0:00:26]} 3. e4 {[%emt 0:01:45]} e6 {[%emt 0:02:50]} 4. Be3 {[%emt 0:09:54]} Nf6 {[%emt 0:01:51]} 5. Nbd2 {[%emt 0:04:56]} c6 {[%emt 0:07:00]} 6. c3 {[%emt 0:02:47]} d5 {[%emt 0:02:34]} 7. Qb3 {[%emt 0:44:17]} Qb6 {[%emt 0:08:49]} 8. Ne5 {[%emt 0:00:53]} Nbd7 {[%emt 0:19:46]} (8... Bh5 $14) 9. exd5 {[%emt 0:14:15]} exd5 {[%emt 0:10:34]} 10. Nxg4 {[%emt 0:01:00]} Nxg4 {[%emt 0:00:02]} 11. Bf4 {[%emt 0:01:02]} Be7 {[%emt 0:06:02]} 12. Bd3 {[%emt 0:09:28]} O-O {[%emt 0:06:07]} 13. Qc2 {[%emt 0:02:06]} Ngf6 {[%emt 0:00:47]} 14. O-O {[%emt 0:00:47]} c5 {[%emt 0:03:03]} 15. dxc5 {[%emt 0:01:09]} Nxc5 {[%emt 0:00:53]} 16. Be2 {[%emt 0:01:13]} Ne6 $11 {[%emt 0:01:53]} 17. Be3 {[%emt 0:03:16]} Qc7 {[%emt 0:05:35]} 18. Nb3 {[%emt 0:00:25]} Bd6 {[%emt 0:04:15]} 19. g3 {[%emt 0:02:19]} Rfe8 {[%emt 0:16:06]} 20. Bf3 {[%emt 0:00:12]} Rad8 {[%emt 0:05:20]} 21. Rad1 {[%emt 0:00:06]} Be5 {[%emt 0:04:34]} 22. Qd3 {[%emt 0:00:24]} b6 {[%emt 0:00:24]} 23. Qb5 {[%emt 0:02:24]} Qc4 {[%emt 0:00:59]} 24. Rxd5 {[%emt 0:01:34]} Qxb5 {[%emt 0:00:42]} 25. Rxb5 {[%emt 0:00:01]} Nc7 {[%emt 0:00:01]} 26. Rb4 {[%emt 0:00:21]} Ncd5 {[%emt 0:00:35]} 27. Ra4 {[%emt 0:01:39]} Nxe3 {[%emt 0:00:06]} 28. fxe3 {[%emt 0:00:01]} a5 {[%emt 0:00:25]} 29. Nd4 {[%emt 0:00:12]} Bd6 {[%emt 0:01:33]} 30. Kf2 {[%emt 0:01:02]} Bc5 {[%emt 0:01:05]} 31. Rd1 {[%emt 0:00:40]} h5 {[%emt 0:00:31]} 32. Rc4 {[%emt 0:01:19]} Rc8 {[%emt 0:00:19]} 33. b4 {[%emt 0:02:00]} axb4 {[%emt 0:00:06]} 34. cxb4 {[%emt 0:00:02]} Bd6 {[%emt 0:00:09]} 35. Nc6 {[%emt 0:00:13]} Bc7 {[%emt 0:00:14]} 36. Rdc1 {[%emt 0:00:11]} Kf8 {[%emt 0:00:10]} 37. Na7 {[%emt 0:00:04]} Bxg3+ {[%emt 0:00:11]} 38. hxg3 {[%emt 0:00:02]} Ra8 {[%emt 0:00:11]} 39. Bxa8 {[%emt 0:00:05]} Rxa8 {[%emt 0:00:01]} 40. Rc8+ {[%emt 0:00:01]} 1-0